[Event "V Sunway Sitges Open 2018"]
[Site "Sitges"]
[Date "2018.12.18"]
[Round "5"]
[White "Sanchez Lopez, Juan Manuel"]
[Black "Perez Bolanos, David"]
[Result "1-0"]
[ECO "A25"]
[WhiteElo "2065"]
[BlackElo "1747"]
[Annotator "NA"]
[PlyCount "61"]
[EventDate "2018.12.14"]
[EventType "swiss"]
[EventCountry "ESP"]
[SourceTitle "playchess.com"]
[Source "ChessBase"]
[SourceQuality "1"]
[TimeControl "40/5400+30:1800+30"]

1. c4 {[%emt 0:01:40]} e5 {[%emt 0:01:29]} 2. Nc3 {[%emt 0:00:13]} Nc6 {[%emt 0:00:37]} 3. g3 {[%emt 0:00:05]} Nf6 {[%emt 0:02:24]} 4. Bg2 {[%emt 0:00:07]} d6 {[%emt 0:01:11]} 5. d3 {[%emt 0:00:22]} g6 {[%emt 0:01:45]} 6. e4 {[%emt 0:00:56]} Bg7 {[%emt 0:04:05]} 7. Nge2 {[%emt 0:00:28]} O-O {[%emt 0:05:52]} 8. O-O {[%emt 0:00:22]} Ne8 {[%emt 0:04:55]} 9. Be3 {[%emt 0:03:12]} Nd4 {[%emt 0:12:55]} 10. Qd2 {[%emt 0:02:06]} c6 {[%emt 0:04:31]} 11. Rae1 {[%emt 0:00:21]} f5 {[%emt 0:02:51]} 12. f4 {[%emt 0:10:10]} Nxe2+ {[%emt 0:08:59]} 13. Rxe2 {[%emt 0:02:49]} fxe4 {[%emt 0:04:26]} 14. dxe4 {[%emt 0:01:12]} Be6 {[%emt 0:03:08]} 15. b3 {[%emt 0:00:21]} Qe7 {[%emt 0:03:49]} 16. Ref2 {[%emt 0:01:39]} exf4 {[%emt 0:03:40]} 17. gxf4 {[%emt 0:01:10]} Nc7 {[%emt 0:12:46]} 18. f5 {[%emt 0:01:25]} Bd7 {[%emt 0:00:16]} 19. Bh6 {[%emt 0:07:54]} Bxh6 {[%emt 0:03:24]} 20. Qxh6 {[%emt 0:00:37]} Rf6 {[%emt 0:00:30]} 21. Qh4 {[%emt 0:07:40]} Qg7 {[%emt 0:04:21]} 22. Ne2 {[%emt 0:03:36]} g5 {[%emt 0:04:13]} 23. Qg4 {[%emt 0:06:51]} Be8 {[%emt 0:01:27]} 24. Ng3 {[%emt 0:00:18]} h6 {[%emt 0:01:06]} 25. c5 {[%emt 0:00:56]} h5 {[%emt 0:01:10]} 26. Nxh5 {[%emt 0:01:35]} Bxh5 {[%emt 0:00:04]} 27. Qxh5 {[%emt 0:00:09]} Rh6 {[%emt 0:00:19]} 28. Qg4 {[%emt 0:01:02]} dxc5 {[%emt 0:00:46]} 29. f6 {[%emt 0:00:27]} Qg6 {[%emt 0:00:21]} 30. Rf5 {[%emt 0:02:32]} Ne6 {[%emt 0:00:16]} 31. Re5 {[%emt 0:01:13]} 1-0

[Event "V Sunway Sitges Open 2018"]
[Site "Sitges"]
[Date "2018.12.18"]
[Round "5"]
[White "Sismeiro, Miguel"]
[Black "Lopez Capape, Armando"]
[Result "1-0"]
[ECO "B39"]
[WhiteElo "2006"]
[BlackElo "1827"]
[Annotator "NA"]
[PlyCount "49"]
[EventDate "2018.12.14"]
[EventType "swiss"]
[EventCountry "ESP"]
[SourceTitle "playchess.com"]
[Source "ChessBase"]
[SourceQuality "1"]
[TimeControl "40/5400+30:1800+30"]

1. e4 c5 2. Nf3 g6 3. d4 cxd4 4. Nxd4 Bg7 5. c4 Nc6 6. Be3 Nf6 7. Nc3 Ng4 8. Qxg4 {[%emt 0:08:38]} Nxd4 {[%emt 0:05:54]} 9. Qd1 {[%emt 0:00:03]} e5 {[%emt 0:02:29]} 10. Nb5 {[%emt 0:00:18]} Nxb5 {[%emt 0:16:04]} 11. cxb5 {[%emt 0:00:12]} O-O {[%emt 0:04:44]} 12. Bc4 {[%emt 0:06:19]} Kh8 {[%emt 0:06:12]} 13. Bc5 {[%emt 0:07:51]} Qh4 {[%emt 0:17:06]} 14. Bxf8 {[%emt 0:03:19]} Bxf8 {[%emt 0:02:18]} 15. O-O {[%emt 0:00:14]} d6 {[%emt 0:03:21]} 16. Qd5 {[%emt 0:03:48]} Be6 {[%emt 0:01:19]} 17. Qxb7 {[%emt 0:00:37]} Rd8 {[%emt 0:00:10]} 18. Bxe6 {[%emt 0:00:09]} fxe6 {[%emt 0:00:09]} 19. Rac1 {[%emt 0:01:50]} d5 {[%emt 0:00:49]} 20. Rc8 {[%emt 0:02:55]} d4 {[%emt 0:00:28]} 21. Rxd8 {[%emt 0:01:19]} Qxd8 {[%emt 0:00:07]} 22. Qf7 {[%emt 0:01:06]} h6 {[%emt 0:02:23]} 23. Qxe6 {[%emt 0:01:54]} d3 {[%emt 0:00:11]} 24. Qxe5+ {[%emt 0:00:20]} Bg7 {[%emt 0:00:10]} 25. Qd5 {[%emt 0:00:08]} 1-0

[Event "V Sunway Sitges Open 2018"]
[Site "Sitges"]
[Date "2018.12.18"]
[Round "5"]
[White "Gonzalez Pabollet, Jesus Maria S"]
[Black "Pedashenko, Anatoly"]
[Result "0-1"]
[ECO "A06"]
[WhiteElo "1815"]
[BlackElo "1985"]
[Annotator "NA"]
[PlyCount "46"]
[EventDate "2018.12.14"]
[EventType "swiss"]
[EventCountry "ESP"]
[SourceTitle "playchess.com"]
[Source "ChessBase"]
[SourceQuality "1"]
[TimeControl "40/5400+30:1800+30"]

1. Nf3 {[%emt 0:09:08]} d5 {[%emt 0:00:00]} 2. g3 {[%emt 0:00:14]} Nf6 {[%emt 0:00:33]} 3. Bg2 {[%emt 0:00:59]} Bg4 {[%emt 0:01:10]} 4. c4 {[%emt 0:02:45]} c6 {[%emt 0:00:56]} 5. cxd5 {[%emt 0:05:21]} cxd5 {[%emt 0:00:15]} 6. Nc3 {[%emt 0:01:56]} Nc6 {[%emt 0:00:48]} 7. d4 {[%emt 0:03:51]} Qb6 {[%emt 0:07:07]} 8. O-O {[%emt 0:11:00]} e6 {[%emt 0:00:59]} 9. e3 {[%emt 0:04:13]} Bd6 {[%emt 0:05:49]} 10. h3 {[%emt 0:06:50]} Bh5 {[%emt 0:00:51]} 11. a3 {[%emt 0:00:34]} Rc8 {[%emt 0:08:04]} 12. Qd3 {[%emt 0:08:13]} O-O {[%emt 0:02:54]} 13. Qb5 {[%emt 0:05:48]} Qc7 {[%emt 0:04:23]} 14. Bd2 {[%emt 0:04:21]} a6 {[%emt 0:02:04]} 15. Qa4 {[%emt 0:01:57]} Nd7 {[%emt 0:10:13]} 16. b4 {[%emt 0:10:08]} Nb6 {[%emt 0:00:35]} 17. Qb3 {[%emt 0:00:27]} Nc4 {[%emt 0:00:29]} 18. Ra2 {[%emt 0:02:21]} Nxd2 {[%emt 0:14:09]} 19. Rxd2 {[%emt 0:01:46]} Nxd4 {[%emt 0:04:48]} 20. Rxd4 {[%emt 0:02:41]} Qxc3 {[%emt 0:01:36]} 21. Qa4 {[%emt 0:00:22]} Bxg3 {[%emt 0:04:51]} 22. Ne1 {[%emt 0:06:31]} Be2 {[%emt 0:04:44]} 23. fxg3 {[%emt 0:00:43]} Qxe3+ {[%emt 0:00:14]} 0-1

[Event "V Sunway Sitges Open 2018"]
[Site "Sitges"]
[Date "2018.12.18"]
[Round "5"]
[White "Jagadeesh, Balakrishnan"]
[Black "Lopez Arjona, Emilio"]
[Result "1-0"]
[ECO "A45"]
[WhiteElo "1750"]
[BlackElo "1535"]
[Annotator "NA"]
[PlyCount "103"]
[EventDate "2018.12.14"]
[EventType "swiss"]
[EventCountry "ESP"]
[SourceTitle "playchess.com"]
[Source "ChessBase"]
[SourceQuality "1"]
[TimeControl "40/5400+30:1800+30"]

1. d4 {[%emt 0:00:00]} Nf6 {[%emt 0:00:00]} 2. g3 {[%emt 0:00:17]} d5 {[%emt 0:02:57]} 3. c4 {[%emt 0:00:09]} c6 {[%emt 0:01:16]} 4. Bg2 {[%emt 0:00:03]} Bf5 {[%emt 0:03:02]} 5. Nf3 {[%emt 0:00:12]} h6 {[%emt 0:00:43]} 6. O-O {[%emt 0:00:25]} e6 {[%emt 0:00:16]} 7. Nc3 {[%emt 0:01:19]} Bd6 {[%emt 0:02:23]} 8. Nd2 {[%emt 0:01:01]} Bc7 {[%emt 0:02:50]} 9. e4 {[%emt 0:04:38]} dxe4 {[%emt 0:01:10]} 10. Ndxe4 {[%emt 0:01:32]} Nbd7 {[%emt 0:04:48]} 11. d5 {[%emt 0:05:07]} Nxe4 {[%emt 0:06:12]} 12. Nxe4 {[%emt 0:01:24]} cxd5 {[%emt 0:04:56]} 13. cxd5 {[%emt 0:00:23]} Rb8 {[%emt 0:02:30]} 14. dxe6 {[%emt 0:07:32]} Bxe6 {[%emt 0:02:13]} 15. Nd6+ {[%emt 0:01:04]} Bxd6 {[%emt 0:03:35]} 16. Qxd6 {[%emt 0:00:04]} Nf6 {[%emt 0:09:51]} 17. Qa3 {[%emt 0:14:41]} Qe7 {[%emt 0:04:56]} 18. Qxa7 {[%emt 0:06:40]} O-O {[%emt 0:00:46]} 19. a3 {[%emt 0:06:27]} Nd5 {[%emt 0:08:05]} 20. Be3 {[%emt 0:07:10]} Ra8 {[%emt 0:03:43]} 21. Qc5 {[%emt 0:01:02]} Qxc5 {[%emt 0:01:22]} 22. Bxc5 {[%emt 0:00:03]} Rfc8 {[%emt 0:00:21]} 23. Rac1 {[%emt 0:03:38]} Rc6 {[%emt 0:03:46]} 24. Rfd1 {[%emt 0:03:53]} Rac8 {[%emt 0:03:41]} 25. Bxd5 {[%emt 0:00:19]} Rxc5 {[%emt 0:00:25]} 26. Rxc5 {[%emt 0:00:38]} Rxc5 {[%emt 0:00:43]} 27. Bxb7 {[%emt 0:04:14]} Rb5 {[%emt 0:00:51]} 28. Rd8+ {[%emt 0:00:18]} Kh7 {[%emt 0:00:52]} 29. Be4+ {[%emt 0:00:09]} f5 {[%emt 0:02:47]} 30. Bc6 {[%emt 0:09:29]} Rxb2 {[%emt 0:02:10]} 31. a4 {[%emt 0:00:45]} Ra2 {[%emt 0:03:41]} 32. Kg2 {[%emt 0:02:38]} h5 {[%emt 0:01:14]} 33. h4 {[%emt 0:00:15]} Bb3 {[%emt 0:00:43]} 34. Rd4 {[%emt 0:03:42]} Bf7 {[%emt 0:03:37]} 35. Kf3 {[%emt 0:03:28]} Ra3+ {[%emt 0:00:54]} 36. Ke2 {[%emt 0:02:53]} Ra2+ {[%emt 0:01:03]} 37. Ke3 {[%emt 0:00:25]} Ra3+ {[%emt 0:00:07]} 38. Rd3 {[%emt 0:00:34]} Ra2 {[%emt 0:01:18]} 39. Rd2 {[%emt 0:00:47]} Ra3+ {[%emt 0:00:23]} 40. Kd4 {[%emt 0:00:00]} Be6 {[%emt 0:00:00]} 41. Bb5 {[%emt 0:04:30]} Kg6 {[%emt 0:08:03]} 42. Kc5 {[%emt 0:00:59]} Rc3+ {[%emt 0:01:49]} 43. Kb6 {[%emt 0:02:43]} Rb3 {[%emt 0:03:49]} 44. Ka7 {[%emt 0:02:43]} Ra3 {[%emt 0:01:22]} 45. Ka6 {[%emt 0:05:26]} Bc8+ {[%emt 0:01:04]} 46. Kb6 {[%emt 0:00:01]} Rb3 {[%emt 0:00:37]} 47. a5 {[%emt 0:01:22]} Be6 {[%emt 0:00:52]} 48. Rd6 {[%emt 0:02:57]} Kf7 {[%emt 0:00:11]} 49. Rc6 {[%emt 0:01:58]} Ke7 {[%emt 0:02:23]} 50. Rc5 {[%emt 0:00:57]} Kd8 {[%emt 0:01:17]} 51. a6 {[%emt 0:01:17]} Bd7 {[%emt 0:04:00]} 52. a7 {[%emt 0:01:46]} 1-0

[Event "V Sunway Sitges Open 2018"]
[Site "Sitges"]
[Date "2018.12.18"]
[Round "5"]
[White "Perez Bolanos, Joel"]
[Black "Bono Monreal, Alberto"]
[Result "1/2-1/2"]
[ECO "B56"]
[WhiteElo "1717"]
[BlackElo "2014"]
[Annotator "NA"]
[PlyCount "70"]
[EventDate "2018.12.14"]
[EventType "swiss"]
[EventCountry "ESP"]
[SourceTitle "playchess.com"]
[Source "ChessBase"]
[SourceQuality "1"]
[TimeControl "40/5400+30:1800+30"]

1. e4 {[%emt 0:03:35]} c5 {[%emt 0:00:00]} 2. Nf3 {[%emt 0:00:28]} d6 {[%emt 0:00:00]} 3. d4 {[%emt 0:01:29]} cxd4 {[%emt 0:00:00]} 4. Nxd4 {[%emt 0:00:10]} Nf6 {[%emt 0:00:00]} 5. Nc3 {[%emt 0:00:10]} e5 {[%emt 0:00:01]} 6. Nb3 {[%emt 0:03:10]} Be7 {[%emt 0:03:02]} 7. g3 {[%emt 0:05:21]} O-O {[%emt 0:00:12]} 8. Bg2 {[%emt 0:00:07]} a5 {[%emt 0:00:08]} 9. a4 {[%emt 0:01:20]} Nc6 {[%emt 0:00:04]} 10. O-O {[%emt 0:00:09]} Bg4 {[%emt 0:05:12]} 11. f3 {[%emt 0:10:22]} Be6 {[%emt 0:00:49]} 12. Nd5 {[%emt 0:01:46]} Rc8 {[%emt 0:05:30]} 13. c3 {[%emt 0:03:03]} Re8 {[%emt 0:09:01]} 14. Be3 {[%emt 0:05:01]} Bf8 {[%emt 0:03:46]} 15. Bb6 {[%emt 0:05:16]} Qd7 {[%emt 0:00:09]} 16. Nxf6+ {[%emt 0:11:48]} gxf6 {[%emt 0:00:01]} 17. Nxa5 {[%emt 0:02:05]} Bh6 {[%emt 0:06:30]} 18. Nxc6 {[%emt 0:09:36]} bxc6 {[%emt 0:00:10]} 19. a5 {[%emt 0:01:03]} c5 {[%emt 0:00:29]} 20. Qa4 {[%emt 0:04:08]} Qe7 {[%emt 0:02:33]} 21. Rfd1 {[%emt 0:02:32]} f5 {[%emt 0:01:00]} 22. Rd3 {[%emt 0:09:34]} Bd7 {[%emt 0:01:19]} 23. Qd1 {[%emt 0:00:15]} Rc6 {[%emt 0:02:22]} 24. Qe2 {[%emt 0:03:03]} fxe4 {[%emt 0:14:48]} 25. fxe4 {[%emt 0:00:33]} f5 {[%emt 0:03:43]} 26. exf5 {[%emt 0:02:07]} e4 {[%emt 0:00:12]} 27. Qg4+ {[%emt 0:00:25]} Kh8 {[%emt 0:00:56]} 28. Re1 {[%emt 0:00:55]} Qf7 {[%emt 0:07:55]} 29. Bxe4 {[%emt 0:02:47]} Bxf5 {[%emt 0:02:46]} 30. Qf3 {[%emt 0:00:10]} Qe6 {[%emt 0:19:14]} 31. Qxf5 {[%emt 0:04:36]} Qxf5 {[%emt 0:00:02]} 32. Bxf5 {[%emt 0:00:10]} Rxe1+ {[%emt 0:00:03]} 33. Kf2 {[%emt 0:00:11]} Rb1 {[%emt 0:05:51]} 34. Bd7 {[%emt 0:01:01]} Rxb2+ {[%emt 0:00:09]} 35. Kf3 {[%emt 0:00:11]} Rcxb6 1/2-1/2

[Event "V Sunway Sitges Open 2018"]
[Site "Sitges"]
[Date "2018.12.18"]
[Round "5"]
[White "Barguer, Alexey"]
[Black "Clanchet Olle, Josep"]
[Result "1/2-1/2"]
[ECO "A06"]
[WhiteElo "1435"]
[BlackElo "1654"]
[Annotator "NA"]
[PlyCount "67"]
[EventDate "2018.12.14"]
[EventType "swiss"]
[EventCountry "ESP"]
[SourceTitle "playchess.com"]
[Source "ChessBase"]
[SourceQuality "1"]
[TimeControl "40/5400+30:1800+30"]

1. Nf3 {[%emt 0:00:00]} d5 {[%emt 0:05:23]} 2. g3 {[%emt 0:00:44]} Bf5 {[%emt 0:00:40]} 3. Bg2 {[%emt 0:00:22]} c6 {[%emt 0:01:07]} 4. O-O {[%emt 0:00:27]} e6 {[%emt 0:01:01]} 5. c4 {[%emt 0:00:44]} Nf6 {[%emt 0:01:23]} 6. cxd5 {[%emt 0:00:33]} exd5 {[%emt 0:02:05]} 7. d3 {[%emt 0:01:06]} Bd6 {[%emt 0:03:53]} 8. Nc3 {[%emt 0:03:13]} O-O {[%emt 0:02:39]} 9. Qc2 {[%emt 0:01:17]} Re8 {[%emt 0:04:11]} 10. Re1 {[%emt 0:03:49]} Nbd7 {[%emt 0:02:55]} 11. a3 {[%emt 0:00:58]} Qc7 {[%emt 0:03:08]} 12. b4 {[%emt 0:02:50]} a5 {[%emt 0:03:48]} 13. bxa5 {[%emt 0:13:10]} Rxa5 {[%emt 0:03:21]} 14. Bd2 {[%emt 0:04:03]} Rea8 {[%emt 0:03:08]} 15. a4 {[%emt 0:05:46]} b5 {[%emt 0:11:25]} 16. Nd4 {[%emt 0:03:48]} Be6 {[%emt 0:03:28]} 17. Ncxb5 {[%emt 0:01:03]} cxb5 {[%emt 0:01:32]} 18. Qxc7 {[%emt 0:00:20]} Bxc7 {[%emt 0:00:40]} 19. Bxa5 {[%emt 0:03:45]} Bxa5 {[%emt 0:02:45]} 20. axb5 {[%emt 0:02:08]} Nb6 {[%emt 0:01:47]} 21. Rec1 {[%emt 0:01:40]} Bd7 {[%emt 0:03:39]} 22. Nc6 {[%emt 0:02:42]} Bd2 {[%emt 0:04:08]} 23. Rxa8+ {[%emt 0:00:33]} Nxa8 {[%emt 0:00:19]} 24. Ra1 {[%emt 0:00:20]} Bxc6 {[%emt 0:01:51]} 25. bxc6 {[%emt 0:00:50]} Nc7 {[%emt 0:03:21]} 26. Ra7 {[%emt 0:00:40]} Nfe8 {[%emt 0:01:16]} 27. Bh3 {[%emt 0:00:58]} Nb5 {[%emt 0:04:39]} 28. Ra8 {[%emt 0:06:33]} Nbc7 {[%emt 0:01:17]} 29. Ra7 {[%emt 0:02:42]} Kf8 {[%emt 0:00:33]} 30. Bd7 {[%emt 0:00:39]} Nb5 {[%emt 0:03:05]} 31. Ra8 {[%emt 0:01:04]} Nbc7 {[%emt 0:00:58]} 32. Ra7 {[%emt 0:01:22]} Nb5 {[%emt 0:01:27]} 33. Ra8 {[%emt 0:00:18]} Nbc7 {[%emt 0:00:29]} 34. Ra7 1/2-1/2

[Event "V Sunway Sitges Open 2018"]
[Site "Sitges"]
[Date "2018.12.18"]
[Round "5"]
[White "Bolat, Inayat"]
[Black "Grau Ferrer, Carles"]
[Result "0-1"]
[ECO "B54"]
[WhiteElo "1262"]
[BlackElo "1796"]
[Annotator "NA"]
[PlyCount "66"]
[EventDate "2018.12.14"]
[EventType "swiss"]
[EventCountry "ESP"]
[SourceTitle "playchess.com"]
[Source "ChessBase"]
[SourceQuality "1"]
[TimeControl "40/5400+30:1800+30"]

1. e4 {[%emt 0:05:25]} c5 {[%emt 0:00:20]} 2. Nf3 {[%emt 0:00:11]} d6 {[%emt 0:01:02]} 3. d4 {[%emt 0:00:08]} cxd4 {[%emt 0:00:12]} 4. Nxd4 {[%emt 0:00:17]} e6 {[%emt 0:00:17]} 5. Nc3 {[%emt 0:00:10]} Nc6 {[%emt 0:01:03]} 6. Be3 {[%emt 0:00:22]} Be7 {[%emt 0:02:28]} 7. Bb5 {[%emt 0:00:27]} Bd7 {[%emt 0:00:07]} 8. O-O {[%emt 0:00:27]} Nf6 {[%emt 0:00:32]} 9. f4 {[%emt 0:00:41]} Nxd4 {[%emt 0:03:16]} 10. Qxd4 {[%emt 0:00:37]} O-O {[%emt 0:00:40]} 11. e5 {[%emt 0:00:41]} Ng4 {[%emt 0:00:19]} 12. exd6 {[%emt 0:00:37]} Bf6 {[%emt 0:00:06]} 13. Qe4 {[%emt 0:00:28]} Nxe3 {[%emt 0:00:23]} 14. Qxe3 {[%emt 0:00:11]} Bxc3 {[%emt 0:00:58]} 15. Bxd7 {[%emt 0:00:23]} Bf6 {[%emt 0:00:09]} 16. Bb5 {[%emt 0:00:30]} Qxd6 {[%emt 0:01:29]} 17. Rad1 {[%emt 0:00:22]} Qb4 {[%emt 0:00:11]} 18. Bd3 {[%emt 0:00:40]} Bd4 {[%emt 0:00:10]} 19. Qxd4 {[%emt 0:00:28]} Qxd4+ {[%emt 0:00:04]} 20. Kh1 {[%emt 0:00:08]} Qb6 {[%emt 0:01:34]} 21. Rf3 {[%emt 0:00:44]} g6 {[%emt 0:01:10]} 22. b3 {[%emt 0:14:45]} Rad8 {[%emt 0:00:15]} 23. Rdf1 {[%emt 0:01:05]} Rd6 {[%emt 0:01:48]} 24. h4 {[%emt 0:00:54]} Qa5 {[%emt 0:00:15]} 25. a4 {[%emt 0:01:00]} Rfd8 {[%emt 0:00:19]} 26. Re1 {[%emt 0:00:46]} Qxe1+ {[%emt 0:00:08]} 27. Kh2 {[%emt 0:00:07]} Qxh4+ {[%emt 0:00:12]} 28. Kg1 {[%emt 0:00:26]} Rxd3 {[%emt 0:01:05]} 29. cxd3 {[%emt 0:00:27]} Qe1+ {[%emt 0:00:07]} 30. Kh2 {[%emt 0:00:21]} Qd1 {[%emt 0:00:29]} 31. Rg3 {[%emt 0:05:38]} Rxd3 {[%emt 0:00:10]} 32. Rxd3 {[%emt 0:01:36]} Qxd3 {[%emt 0:00:03]} 33. b4 {[%emt 0:00:17]} Qd2 {[%emt 0:00:09]} 0-1

[Event "V Sunway Sitges Open 2018"]
[Site "Sitges"]
[Date "2018.12.19"]
[Round "6"]
[White "Soumya, Swaminathan"]
[Black "Kulaots, Kaido"]
[Result "0-1"]
[ECO "B42"]
[WhiteElo "2428"]
[BlackElo "2555"]
[Annotator "ChessBase"]
[PlyCount "48"]
[EventDate "2018.12.14"]
[EventType "swiss"]
[EventCountry "ESP"]
[SourceTitle "playchess.com"]
[Source "ChessBase"]
[SourceQuality "1"]
[TimeControl "40/5400+30:1800+30"]

1. e4 {[%emt 0:00:16]} c5 {[%emt 0:00:00]} 2. Nf3 {[%emt 0:00:32]} e6 {[%emt 0:00:12]} 3. d4 {[%emt 0:00:27]} cxd4 {[%emt 0:00:08]} 4. Nxd4 {[%emt 0:00:02]} a6 {[%emt 0:00:20]} 5. Bd3 {[%emt 0:00:34]} Ne7 {[%emt 0:00:35]} 6. O-O {[%emt 0:06:52]} Nbc6 {[%emt 0:01:07]} 7. Nxc6 {[%emt 0:01:11]} Nxc6 {[%emt 0:00:18]} 8. Bf4 {[%emt 0:03:42]} Be7 {[%emt 0:05:30]} 9. e5 {[%emt 0:06:13]} d6 {[%emt 0:15:49]} 10. exd6 {[%emt 0:01:19]} Bxd6 {[%emt 0:00:16]} 11. Bxd6 {[%emt 0:00:05]} Qxd6 {[%emt 0:00:09]} 12. Nc3 {[%emt 0:01:13]} Bd7 {[%emt 0:05:23]} 13. Qg4 {[%emt 0:05:38]} O-O {[%emt 0:14:59]} 14. Rad1 {[%emt 0:22:46]} Qe7 {[%emt 0:00:25]} 15. Rfe1 {[%emt 0:05:23]} Rad8 {[%emt 0:03:07]} 16. Qh5 {[%emt 0:06:47]} f5 {[%emt 0:10:15]} 17. f4 {[%emt 0:06:58]} e5 {[%emt 0:02:24]} 18. fxe5 {[%emt 0:06:14]} Qc5+ {[%emt 0:02:24]} 19. Kh1 {[%emt 0:01:00]} Nxe5 {[%emt 0:00:53]} 20. Be2 {[%emt 0:00:12]} Rde8 {[%emt 0:09:27]} 21. Rxd7 {[%emt 0:08:31]} Nxd7 {[%emt 0:00:20]} 22. Qh4 {[%emt 0:07:13]} Ne5 {[%emt 0:02:02]} 23. Rd1 {[%emt 0:00:28]} f4 {[%emt 0:02:11]} 24. h3 {[%emt 0:02:45]} Kh8 {[%emt 0:03:56]} 0-1

[Event "V Sunway Sitges Open 2018"]
[Site "Sitges"]
[Date "2018.12.19"]
[Round "6"]
[White "Ruiz Gonzalez, Jorge"]
[Black "Kairbekova, Amina"]
[Result "1/2-1/2"]
[ECO "C00"]
[WhiteElo "2083"]
[BlackElo "1905"]
[Annotator "NA RC"]
[PlyCount "136"]
[EventDate "2018.12.14"]
[EventType "swiss"]
[EventCountry "ESP"]
[SourceTitle "playchess.com"]
[Source "ChessBase"]
[SourceQuality "1"]
[TimeControl "40/5400+30:1800+30"]

1. e4 {[%emt 0:00:00]} e6 {[%emt 0:00:00]} 2. d4 {[%emt 0:00:00]} d5 {[%emt 0:00:00]} 3. Bd3 {[%emt 0:00:00]} dxe4 {[%emt 0:00:00]} 4. Bxe4 {[%emt 0:00:00]} Nf6 {[%emt 0:00:07]} 5. Bf3 {[%emt 0:00:00]} c5 {[%emt 0:01:11]} 6. Ne2 {[%emt 0:00:01]} Nc6 {[%emt 0:00:10] C01: French: Exchange Variation} 7. Be3 {[%emt 0:00:05]} cxd4 {[%emt 0:00:12]} (7... Nd5 8. Bxd5 Qxd5 9. Nbc3 Qxg2 10. Rg1 Qf3 11. Nb5 Rb8 12. dxc5 Bd7 13. Nc7+ Kd8 14. Nb5 {0-1 (54) Kramnik,V (2808)-Caruana,F (2808) Stavanger 2017}) 8. Nxd4 {[%emt 0:00:08]} Ne5 {[%emt 0:00:03]} 9. Nc3 {[%emt 0:00:12]} Be7 {[%emt 0:01:10]} 10. Ndb5 {[%emt 0:08:31]} Nxf3+ {[%emt 0:08:29]} 11. gxf3 {[%emt 0:07:49]} Bd7 {[%emt 0:02:39]} 12. Nd6+ {[%emt 0:13:36]} Bxd6 {[%emt 0:00:03]} 13. Qxd6 {[%emt 0:00:06]} Bc6 {[%emt 0:00:15]} 14. Qxd8+ $146 {[%emt 0:00:45]} ({Predecessor:} 14. Qg3) 14... Rxd8 {[%emt 0:00:44]} 15. Rg1 {[%emt 0:00:39]} O-O {[%emt 0:00:53]} 16. Bg5 {[%emt 0:00:42]} Kh8 {[%emt 0:02:53]} 17. Ne4 {[%emt 0:01:23]} Bxe4 {[%emt 0:04:08]} 18. fxe4 {[%emt 0:00:06]} Rc8 {[%emt 0:00:05]} 19. Bxf6 {[%emt 0:00:36]} gxf6 {[%emt 0:00:07]} 20. O-O-O {[%emt 0:00:42]} Rc7 {[%emt 0:02:49]} 21. Rd3 {[%emt 0:01:59]} Rg8 {[%emt 0:00:08]} 22. Rgg3 {[%emt 0:03:19]} Rxg3 {[%emt 0:00:18]} 23. hxg3 {[%emt 0:00:01]} Kg7 {[%emt 0:00:35]} 24. Kd2 {[%emt 0:01:03]} a6 {[%emt 0:02:18]} 25. Rc3 {[%emt 0:01:46]} Rd7+ {[%emt 0:01:36]} 26. Ke3 {[%emt 0:00:03]} Kg6 {[%emt 0:01:32]} 27. Rc5 {[%emt 0:00:51]} f5 {[%emt 0:01:44]} 28. exf5+ {[%emt 0:00:16]} exf5 {[%emt 0:00:06]} 29. b4 {[%emt 0:08:14]} h5 {[%emt 0:02:39]} 30. a4 {[%emt 0:02:12]} Kg5 {[%emt 0:00:18]} 31. b5 {[%emt 0:02:34]} axb5 {[%emt 0:01:28]} 32. axb5 {[%emt 0:00:33]} Kf6 {[%emt 0:00:44]} 33. f4 {[%emt 0:15:44]} Re7+ {[%emt 0:04:57]} 34. Kf3 {[%emt 0:00:22]} Rd7 {[%emt 0:00:26]} 35. c4 {[%emt 0:02:58]} Rd3+ {[%emt 0:02:35]} 36. Kg2 {[%emt 0:00:31]} Rc3 {[%emt 0:01:53]} 37. Rc7 {[%emt 0:00:40]} b6 {[%emt 0:04:01]} 38. Rc6+ {[%emt 0:02:32]} Kg7 {[%emt 0:00:13]} 39. Kh3 {[%emt 0:06:36]} f6 {[%emt 0:00:50]} 40. Kg2 {[%emt 0:00:00]} Kg6 {[%emt 0:00:00]} 41. Rxb6 {[%emt 0:07:10]} Rxc4 {[%emt 0:00:32]} 42. Rb8 {[%emt 0:00:04]} Kg7 {[%emt 0:01:26]} 43. b6 {[%emt 0:00:08]} Rc2+ {[%emt 0:01:34]} 44. Kf3 {[%emt 0:00:58]} Rc3+ {[%emt 0:00:05]} 45. Kf2 {[%emt 0:00:06]} Rc2+ {[%emt 0:00:05]} 46. Ke3 {[%emt 0:02:11]} Rc3+ {[%emt 0:00:13]} 47. Kd4 {[%emt 0:08:46]} Rxg3 {[%emt 0:00:11]} 48. b7 {[%emt 0:00:03]} Rb3 {[%emt 0:00:13]} 49. Kc5 {[%emt 0:00:08]} h4 {[%emt 0:04:51]} 50. Kc6 $1 {[%emt 0:00:03]} ({Don't go for} 50. Kc4 $2 Rb1 $19) 50... h3 {[%emt 0:01:13]} 51. Ra8 {[%emt 0:00:01]} h2 {[%emt 0:00:38]} 52. Ra1 {[%emt 0:00:06]} Rc3+ {[%emt 0:00:21]} 53. Kd7 {[%emt 0:00:30]} Rb3 {[%emt 0:00:36]} 54. Kc8 {[%emt 0:00:03]} Rc3+ {[%emt 0:00:29]} 55. Kd7 {[%emt 0:02:47]} Rb3 {[%emt 0:00:19]} 56. Kc7 {[%emt 0:00:31]} Rc3+ {[%emt 0:18:57]} 57. Kb6 {[%emt 0:00:11]} Rb3+ {[%emt 0:00:04]} 58. Ka7 {[%emt 0:01:12]} Kh6 {[%emt 0:00:16]} 59. Rh1 {[%emt 0:12:40]} Kh5 {[%emt 0:01:12]} 60. Rxh2+ {[%emt 0:02:11]} Kg4 {[%emt 0:00:04]} 61. Rh6 {[%emt 0:02:06]} Kxf4 {[%emt 0:07:59]} 62. Rxf6 {[%emt 0:00:10]} Rxb7+ {[%emt 0:00:28]} 63. Kxb7 $11 {[%emt 0:00:01]} Ke5 {[%emt 0:00:06]} 64. Rb6 {[%emt 0:14:51]} f4 {[%emt 0:00:06]} 65. Kc6 {[%emt 0:00:20]} f3 {[%emt 0:03:18]} 66. Rb1 {[%emt 0:02:35]} Kd4 {[%emt 0:01:14]} 67. Rd1+ {[%emt 0:01:32]} Ke3 {[%emt 0:00:17]} 68. Kd5 {[%emt 0:00:27] Kd4+} Ke2 {[%emt 0:00:22]} 1/2-1/2